fUST/lending_fUST_20240331
["ID","MTS","AMOUNT","RATE_DAILY","PERIOD"]
[321068527,1711862846162,-113.91183247,0.000383,2]
[321069158,1711863038383,-183.98788828,0.00038256,2]
[321069160,1711863038393,-192.08816753,0.000383,2]
[321069162,1711863038403,-153.0,0.000383,2]
[321069164,1711863038412,-153.0,0.000383,2]
[321069166,1711863038421,-153.0,0.000383,2]
[321069169,1711863038431,-186.11342181,0.00038355,15]
[321069170,1711863038440,-319.44378727,0.00038355,15]
[321069172,1711863038449,-500.0,0.00038356,4]
[321069175,1711863038459,-500.0,0.00038356,4]
[321069176,1711863038469,-500.0,0.00038356,4]
[321069178,1711863038478,-502.05533203,0.00038356,4]
[321069180,1711863038488,-500.0,0.00038356,4]
[321069183,1711863038497,-500.70206144,0.00038356,4]
[321069184,1711863038506,-602.56,0.00038356,4]
[321069186,1711863038515,-181.6018807,0.00038356,4]
[321069189,1711863038527,-318.3981193,0.00038356,4]
[321069191,1711863038536,-10.29851374,0.00038356,4]
[321069193,1711863038547,-633.07148626,0.00038356,4]
[321069195,1711863038556,-612.95,0.00038356,2]
[321069197,1711863038565,-614.72,0.00038356,4]
[321069199,1711863038574,-1074.15,0.00038356,4]
[321069202,1711863038591,-500.0,0.00038356,4]
[321069204,1711863038603,-887.2,0.00038356,4]
[321069206,1711863038613,-500.0,0.00038356,4]
[321069208,1711863038623,-9238.36,0.00038356,4]
[321069210,1711863038633,-500.0,0.00038356,4]
[321069212,1711863038643,-859.99,0.00038356,4]
[321069214,1711863038652,-500.0,0.00038356,4]
[321069216,1711863038664,-818.93,0.00038356,4]
[321069218,1711863038674,-2648.0,0.00038356,4]
[321069220,1711863038683,-500.0,0.00038356,4]
[321069223,1711863038692,-500.0,0.00038356,4]
[321069225,1711863038702,-500.0,0.00038356,2]
[321069227,1711863038712,-751.89,0.00038356,4]
[321069229,1711863038721,-2673.75,0.00038356,4]
[321069231,1711863038730,-500.0,0.00038356,4]
[321069233,1711863038739,-1194.86,0.00038356,4]
[321069235,1711863038748,-658.41,0.00038356,4]
[321069237,1711863038758,-500.0,0.00038356,4]
[321069239,1711863038768,-500.0,0.00038356,4]
[321069241,1711863038777,-5089.66,0.00038356,4]
[321069243,1711863038787,-2006.63,0.00038356,4]
[321069245,1711863038796,-1883.91,0.00038356,4]
[321069247,1711863038806,-500.0,0.00038356,4]
[321069249,1711863038816,-1028.75,0.00038356,4]
[321069251,1711863038825,-856.74,0.00038356,4]
[321069253,1711863038835,-503.40924565,0.00038356,4]
[321069255,1711863038843,-600.75754339,0.00038356,4]
[321069257,1711863038853,-500.0,0.00038356,4]
[321069259,1711863038862,-500.0,0.00038356,4]
[321069261,1711863038871,-14693.02,0.00038356,4]
[321069263,1711863038880,-860.98,0.00038356,4]
[321069265,1711863038890,-3158.11,0.00038356,4]
[321069267,1711863038899,-500.0,0.00038356,4]
[321069269,1711863038908,-153.0,0.000384,2]
[321069271,1711863038917,-153.0,0.000384,2]
[321069273,1711863038926,-153.0,0.000384,2]
[321069275,1711863038935,-202.1014025,0.000384,2]
[321069277,1711863038945,-153.0,0.000384,2]
[321069279,1711863038953,-153.0,0.000384,2]
[321069281,1711863038963,-153.0,0.000384,2]
[321069283,1711863038973,-306.0,0.000384,2]
[321069285,1711863038983,-153.805208,0.000384,2]
[321069287,1711863038992,-202.21811,0.000384,2]
[321069289,1711863039003,-153.0,0.000384,2]
[321069291,1711863039014,-153.0,0.000384,2]
[321069293,1711863039024,-153.0,0.000384,2]
[321069295,1711863039034,-153.0,0.000384,2]
[321069297,1711863039043,-202.21811,0.000384,2]
[321069299,1711863039053,-155.127224,0.00038521,2]
[321069301,1711863039062,-153.0,0.000386,2]
[321069303,1711863039071,-500.0,0.0003863,4]
[321069305,1711863039081,-500.0,0.0003863,4]
[321069307,1711863039089,-500.0,0.0003863,4]
[321069309,1711863039098,-602.56,0.0003863,4]
[321069311,1711863039107,-500.0,0.0003863,4]
[321069313,1711863039116,-643.37,0.0003863,4]
[321069315,1711863039125,-612.95,0.0003863,2]
[321069317,1711863039135,-614.72,0.0003863,4]
[321069319,1711863039145,-1074.15,0.0003863,4]
[321069321,1711863039154,-500.0,0.0003863,4]
[321069323,1711863039163,-887.2,0.0003863,4]
[321069325,1711863039172,-500.0,0.0003863,4]
[321069327,1711863039181,-9238.36,0.0003863,4]
[321069329,1711863039190,-500.0,0.0003863,4]
[321069331,1711863039199,-859.99,0.0003863,4]
[321069333,1711863039208,-500.0,0.0003863,4]
[321069335,1711863039217,-818.93,0.0003863,4]
[321069337,1711863039226,-2648.0,0.0003863,4]
[321069339,1711863039235,-500.0,0.0003863,4]
[321069341,1711863039245,-500.0,0.0003863,4]
[321069343,1711863039254,-500.0,0.0003863,2]
[321069346,1711863039265,-751.89,0.0003863,4]
[321069348,1711863039274,-2673.75,0.0003863,4]
[321069350,1711863039283,-500.0,0.0003863,4]
[321069352,1711863039293,-1194.86,0.0003863,4]
[321069353,1711863039305,-658.41,0.0003863,4]
[321069356,1711863039319,-500.0,0.0003863,4]
[321069357,1711863039328,-500.0,0.0003863,4]
[321069359,1711863039337,-5089.66,0.0003863,4]
[321069360,1711863039346,-2006.63,0.0003863,4]
[321069361,1711863039355,-1883.91,0.0003863,4]
[321069362,1711863039365,-500.0,0.0003863,4]
[321069363,1711863039377,-1028.75,0.0003863,4]
[321069364,1711863039387,-856.74,0.0003863,4]
[321069365,1711863039396,-500.0,0.0003863,4]
[321069366,1711863039405,-500.0,0.0003863,4]
[321069367,1711863039413,-14693.02,0.0003863,4]
[321069368,1711863039423,-860.98,0.0003863,4]
[321069369,1711863039432,-3158.11,0.0003863,4]
[321069370,1711863039441,-153.0,0.000387,2]
[321069371,1711863039449,-153.0,0.000387,2]
[321069372,1711863039458,-202.21811,0.000387,2]
[321069373,1711863039468,-153.0,0.000387,2]
[321069374,1711863039476,-153.0,0.000387,2]
[321069375,1711863039485,-202.21811,0.000387,2]
[321069377,1711863039495,-153.0,0.000387,2]
[321069378,1711863039503,-404.3688033,0.000387,2]
[321069380,1711863039514,-500.0,0.00038904,4]
[321069382,1711863039523,-500.0,0.00038904,4]
[321069384,1711863039532,-264.3924487,0.00038904,4]
[321069482,1711863043631,-500.0,0.00038356,4]
[321069483,1711863043642,-750.68,0.00038356,4]
[321069484,1711863043651,-500.0,0.0003863,4]
[321069485,1711863043661,-750.68,0.0003863,4]
[321069486,1711863043670,-113.2497693,0.00038904,4]
[321069487,1711863043679,-602.56,0.00038904,4]
[321069488,1711863043688,-500.0,0.00038904,4]
[321069489,1711863043697,-643.37,0.00038904,4]
[321069490,1711863043707,-612.95,0.00038904,2]
[321069491,1711863043716,-614.72,0.00038904,4]
[321069492,1711863043726,-1074.15,0.00038904,4]
[321069493,1711863043735,-500.0,0.00038904,4]
[321069494,1711863043744,-887.2,0.00038904,4]
[321069495,1711863043753,-500.0,0.00038904,4]
[321069496,1711863043762,-6606.81615933,0.00038904,4]
[321069531,1711863054075,659.12629069,0.00036,2]
[321069532,1711863054095,500.0,0.00036,2]
[321069533,1711863054116,616.45536398,0.00036,2]
[321069534,1711863054138,501.70762856,0.00036,2]
[321069535,1711863054159,490.0,0.00036,2]
[321069536,1711863054182,7232.71071677,0.00036,2]
[321069537,1711863066252,4739.49,0.00036,2]
[321069545,1711863941164,-155.40147652,0.00036,2]
[321069546,1711863941183,-378.07749614,0.0003653,2]
[321069547,1711863941203,-785.35583981,0.00037331,2]
[321069548,1711863994544,384.03721058,0.00035231,2]
[321069549,1711864049086,-1074.8579348,0.00037231,2]
[321069550,1711864049106,-23.5002355,0.00037331,2]
[321069551,1711864052102,-1262.68,0.00037331,2]
[321069604,1711864232474,-155.99415501,0.00037331,4]
[321069606,1711864232483,-212.7793712,0.00037424,2]
[321069608,1711864232493,-618.1629925,0.00037424,2]
[321069610,1711864232502,-7808.8360574,0.00037424,2]
[321069612,1711864232511,-506.87479312,0.00038355,15]
[321069614,1711864232520,-500.0,0.00038356,4]
[321069616,1711864232529,-265.32614069,0.00038356,4]
[321069618,1711864232538,-581.64,0.00038356,2]
[321069620,1711864232547,-527.24,0.00038356,4]
[321069622,1711864232555,-500.0,0.00038356,4]
[321069624,1711864232564,-500.0,0.00038356,4]
[321069626,1711864232573,-504.2437964,0.00038356,4]
[321069628,1711864232582,-500.0,0.00038356,4]
[321069630,1711864232591,-500.0,0.00038356,4]
[321069631,1711864232600,-500.0,0.00038356,4]
[321069632,1711864232609,-500.0,0.00038356,4]
[321069633,1711864232618,-562.95,0.00038356,4]
[321069634,1711864232627,-939.88,0.00038356,4]
[321069635,1711864232640,-537.88,0.00038356,4]
[321069636,1711864232649,-500.0,0.00038356,4]
[321069637,1711864232658,-500.0,0.00038356,4]
[321069638,1711864232667,-6790.81411259,0.00038356,4]
[321069639,1711864232679,-1593.37588741,0.00038356,4]
[321069640,1711864232688,-789.24,0.00038356,4]
[321069641,1711864232697,-500.0,0.00038356,4]
[321069642,1711864232706,-688.13,0.00038356,4]
[321069643,1711864232716,-199.12527541,0.00038356,4]
[321069943,1711864238643,-2228.20472459,0.00038356,4]
[321069944,1711864238654,-500.0,0.00038356,4]
[321069945,1711864238663,-788.33,0.00038356,4]
[321069946,1711864238673,-500.0,0.00038356,4]
[321069947,1711864238682,-2450.94,0.00038356,4]
[321069948,1711864238692,-500.0,0.00038356,4]
[321069949,1711864238701,-689.23,0.00038356,4]
[321069951,1711864238712,-603.54,0.00038356,4]
[321069952,1711864238721,-1095.29,0.00038356,4]
[321069953,1711864238732,-500.0,0.00038356,2]
[321069954,1711864238742,-4665.53,0.00038356,4]
[321069955,1711864238752,-943.02,0.00038356,4]
[321069956,1711864238762,-1726.92,0.00038356,4]
[321069957,1711864238771,-500.0,0.00038356,4]
[321069958,1711864238781,-500.0,0.00038356,4]
[321069959,1711864238791,-500.0,0.00038356,4]
[321069960,1711864238800,-1839.41,0.00038356,4]
[321069961,1711864238809,-441.32106987,0.00038356,4]
[321069962,1711864238821,-58.67893013,0.00038356,4]
[321069963,1711864238831,-4457.3287002,0.00038356,4]
[321069964,1711864238843,-7135.40026752,0.00038356,4]
[321069965,1711864238859,-1875.87103228,0.00038356,4]
[321069966,1711864238869,-500.0,0.00038356,4]
[321069967,1711864238879,-500.0,0.00038356,4]
[321069968,1711864238890,-785.35,0.00038356,4]
[321069969,1711864238900,-501.13499179,0.00038356,4]
[321069970,1711864238909,-2584.62852453,0.00038356,4]
[321069971,1711864238922,-310.30147547,0.00038356,4]
[321069972,1711864238932,-776.3,0.00038356,4]
[321069973,1711864238942,-500.0,0.00038356,4]
[321069974,1711864238951,-500.0,0.00038356,4]
[321069975,1711864238961,-581.64,0.0003863,2]
[321069976,1711864238971,-527.24,0.0003863,4]
[321069977,1711864238981,-500.0,0.0003863,4]
[321069978,1711864238991,-500.0,0.0003863,4]
[321069979,1711864239000,-562.95,0.0003863,4]
[321069980,1711864239010,-741.13323232,0.0003863,4]
[321070043,1711864244001,-150.0,0.00038303,2]
[321070045,1711864244011,-117.22339052,0.00038356,4]
[321070051,1711864244060,-305.99161024,0.00038356,4]
[321070053,1711864244070,-198.74676768,0.0003863,4]
[321070055,1711864244079,-537.88,0.0003863,4]
[321070057,1711864244088,-500.0,0.0003863,4]
[321070059,1711864244097,-233.3167731,0.0003863,4]
[321070061,1711864244109,-8150.8732269,0.0003863,4]
[321070063,1711864244118,-789.24,0.0003863,4]
[321070065,1711864244129,-500.0,0.0003863,4]
[321070066,1711864244138,-688.13,0.0003863,4]
[321070068,1711864244147,-2427.33,0.0003863,4]
[321070070,1711864244156,-487.06026404,0.0003863,4]
[321070073,1711864244176,-12.93973596,0.0003863,4]
[321070075,1711864244186,-788.33,0.0003863,4]
[321070077,1711864244195,-2332.3762395,0.0003863,4]
[321070081,1711864296039,351.19120244,0.0003653,2]
[321070097,1711865159189,-516.40477914,0.0003653,2]
[321070098,1711865159209,-234.12746829,0.0003653,2]
[321070099,1711865159230,-456.30104297,0.0003653,4]
[321070100,1711865159250,-433.4950288,0.00037,30]
[321070101,1711865159271,-103.40062788,0.00037183,4]
[321070102,1711865200426,219.52924245,0.000349,2]
[321070103,1711865225093,-279.29376342,0.00037183,4]
[321070104,1711865225114,-312.3649126,0.00037331,2]
[321070105,1711865225137,-1067.88248391,0.00038256,2]
[321070106,1711865226093,-1146.36553248,0.00038256,2]
[321070107,1711865226118,-189.97174521,0.00038256,2]
[321070108,1711865226139,-159.12629069,0.00038256,8]
[321070109,1711865226159,-53.97102623,0.000383,30]
[321070110,1711865234090,-500.0,0.000383,30]
[321070111,1711865243110,-179.36086895,0.000383,30]
[321070112,1711865243130,-322.97578882,0.00038355,15]
[321070209,1711865438689,-161.52605772,0.00038256,8]
[321070211,1711865438699,-183.98788828,0.00038256,2]
[321070213,1711865438708,-182.09937137,0.00038355,15]
[321070215,1711865438718,-500.0,0.00038356,4]
[321070217,1711865438726,-683.13328047,0.00038356,4]
[321070460,1711865443918,-88.43671953,0.00038356,4]
[321070461,1711865443928,-500.0,0.00038356,4]
[321070462,1711865443937,-500.0,0.00038356,4]
[321070463,1711865443947,-570.9,0.00038356,4]
[321070464,1711865443956,-506.63004731,0.00038356,4]
[321070465,1711865443965,-500.0,0.00038356,4]
[321070466,1711865443974,-500.0,0.00038356,4]
[321070467,1711865443983,-942.37,0.00038356,4]
[321070468,1711865443992,-500.0,0.00038356,4]
[321070469,1711865444003,-6824.66179362,0.00038356,4]
[321070503,1711865501954,322.36059225,0.00036256,2]
[321070522,1711866352195,-304.09570007,0.00036156,7]
[321070523,1711866352217,-214.9070615,0.00036256,2]
[321070524,1711866352240,-954.2473144,0.00037168,2]
[321070525,1711866352262,-212.779371,0.00037179,2]
[321070526,1711866352285,-187.445548,0.00037333,2]
[321070527,1711866352310,-150.87929656,0.00038234,4]
[321070528,1711866352333,-192.93961164,0.00038256,2]
[321070529,1711866430111,-224.63427029,0.00036134,2]
[321070530,1711866430132,-403.06016219,0.00038256,2]
[321070531,1711866447599,-179.110627,0.00037219,2]
[321070532,1711866447619,-317.52237753,0.00038256,2]
[321070533,1711866447641,-3.36699547,0.00038256,2]
[321070534,1711866448313,-624.32743701,0.00038256,2]
[321070535,1711866448340,-183.98788828,0.00038256,2]
[321070536,1711866448363,-500.0,0.00038355,15]
[321070537,1711866448382,-739.42,0.00038356,4]
[321070538,1711866448403,-212.72380288,0.00038356,4]
[321070539,1711866450091,-287.27619712,0.00038356,4]
[321070540,1711866450113,-500.0,0.00038356,4]
[321070541,1711866450136,-500.0,0.00038356,4]
[321070542,1711866450161,-154.93802479,0.00038356,4]
[321070543,1711866450183,-221.32705213,0.00038356,4]
[321070588,1711866637862,-1863.1463234,0.00037767,2]
[321070589,1711866637872,-161.52605771,0.00038256,8]
[321070590,1711866637882,-183.98788828,0.00038256,2]
[321070591,1711866637891,-264.3924487,0.00038356,4]
[321070592,1711866637899,-388.12910874,0.00038356,4]
[321070593,1711866637909,-547.12,0.00038356,4]
[321070594,1711866637918,-500.0,0.00038356,4]
[321070595,1711866637927,-282.65574823,0.00038356,2]
[321070596,1711866637945,-250.51425177,0.00038356,2]
[321070597,1711866637954,-522.89,0.00038356,4]
[321070598,1711866637963,-502.17376325,0.00038356,4]
[321070599,1711866637972,-500.0,0.00038356,4]
[321070600,1711866637982,-903.1,0.00038356,4]
[321070601,1711866637991,-502.63509034,0.00038356,4]
[321070602,1711866638000,-500.0,0.00038356,4]
[321070603,1711866638010,-500.0,0.00038356,4]
[321070604,1711866638019,-107.9783122,0.00038356,4]
[321070605,1711866638031,-394.17019148,0.00038356,4]
[321070606,1711866638040,-500.0,0.00038356,4]
[321070607,1711866638050,-500.0,0.00038356,4]
[321070608,1711866638058,-181.67907004,0.00038356,4]
[321070716,1711866643141,-318.32092996,0.00038356,4]
[321070717,1711866643151,-500.0,0.00038356,4]
[321070718,1711866643159,-291.50071206,0.00038356,4]
[321070932,1711866706851,150.0,0.00036256,2]
[321070936,1711867542101,-150.0,0.00036256,2]
[321070937,1711867542121,-155.40147652,0.00036256,2]
[321070938,1711867542142,-1434.4307528,0.00037331,2]
[321070939,1711867542163,-559.85510722,0.00037395,2]
[321070940,1711867611203,175.78201224,0.00035295,2]
[321070945,1711867625118,-1074.8579348,0.00037231,2]
[321070946,1711867625140,-1335.36358446,0.00037395,2]
[321070947,1711867633083,-1001.70762856,0.00037395,2]
[321070948,1711867637091,-2098.3581703,0.00037395,2]
[321070949,1711867646102,-1263.07242249,0.00037395,2]
[321070950,1711867656913,157.59963815,0.00035295,4]
[321070971,1711867831987,-806.85474569,0.00037395,2]
[321070973,1711867831997,-170.33890682,0.00038256,2]
[321070974,1711867832006,-500.0,0.00038355,15]
[321070976,1711867832016,-168.10255007,0.00038355,15]
[321070978,1711867832025,-589.34132669,0.00038356,4]
[321070979,1711867832034,-517.21736791,0.00038356,4]
[321070980,1711867832043,-500.0,0.00038356,4]
[321070981,1711867832052,-500.0,0.00038356,4]
[321070982,1711867832061,-456.78839921,0.00038356,2]
[321071018,1711867838020,-54.16160079,0.00038356,2]
[321071020,1711867838029,-500.0,0.00038356,4]
[321071022,1711867838039,-500.0,0.00038356,4]
[321071024,1711867838048,-500.0,0.00038356,4]
[321071026,1711867838058,-500.0,0.00038356,4]
[321071028,1711867838067,-500.0,0.00038356,4]
[321071030,1711867838077,-500.0,0.00038356,4]
[321071032,1711867838086,-501.37613544,0.00038356,4]
[321071034,1711867838095,-156.31132105,0.00038356,4]
[321071036,1711867838104,-524.32,0.00038356,4]
[321071038,1711867838113,-708.61,0.00038356,4]
[321071040,1711867838122,-509.48703964,0.00038356,4]
[321071042,1711867838131,-530.36,0.00038356,4]
[321071044,1711867838141,-707.66393848,0.00038356,4]
[321071046,1711867838152,-205.06606152,0.00038356,4]
[321071048,1711867838161,-500.0,0.00038356,4]
[321071050,1711867838170,-500.0,0.00038356,4]
[321071052,1711867838179,-500.0,0.00038356,4]
[321071054,1711867838188,-722.63,0.00038356,4]
[321071056,1711867838198,-682.82011481,0.00038356,4]
[321071058,1711867838209,-1542.22988519,0.00038356,4]
[321071060,1711867838218,-500.0,0.00038356,4]
[321071062,1711867838227,-500.0,0.00038356,4]
[321071064,1711867838237,-151.0,0.00038356,2]
[321071066,1711867838246,-57.90922192,0.00038356,4]
[321071086,1711867838562,-255.51346517,0.00038356,4]
[321071162,1711867843277,-378.42731291,0.00038356,4]
[321071163,1711867843287,-605.83,0.00038356,4]
[321071164,1711867843299,-500.0,0.00038356,2]
[321071165,1711867843308,-82.9888906,0.00038356,4]
[321071166,1711867843322,-1804.323423,0.00038356,4]
[321071167,1711867843334,-475.7276864,0.00038356,4]
[321071168,1711867843343,-500.0,0.00038356,4]
[321071169,1711867843353,-1099.44,0.00038356,4]
[321071170,1711867843362,-500.0,0.00038356,4]
[321071171,1711867843371,-4683.2,0.00038356,4]
[321071172,1711867843381,-946.59,0.00038356,4]
[321071173,1711867843390,-576.20179694,0.00038356,4]
[321071174,1711867843399,-501.05570379,0.00038356,4]
[321071175,1711867843409,-500.0,0.00038356,4]
[321071176,1711867843418,-1846.38,0.00038356,4]
[321071177,1711867843427,-304.25115409,0.00038356,4]
[321071178,1711867843437,-1843.16,0.00038356,4]
[321071179,1711867843446,-500.0,0.00038356,4]
[321071180,1711867843455,-11647.87800349,0.00038356,4]
[321071202,1711867913739,367.02165331,0.00036256,2]
[321071207,1711868074867,446.84508827,0.00022,2]
[321071209,1711868817673,244.68110221,0.000199,2]
[321071210,1711868817843,244.68110221,0.000249,2]
[321071211,1711868828144,-651.04526375,0.00037,30]
[321071212,1711868828170,-251.29139402,0.00037282,2]
[321071213,1711868833096,-61.07351858,0.00037282,2]
[321071214,1711868833121,-158.677111,0.00037857,2]
[321071215,1711868833143,-176.869242,0.00037857,2]
[321071216,1711868833164,-173.982654,0.00037857,2]
[321071217,1711868833188,-222.121173,0.00037857,2]
[321071218,1711868833208,-159.37312703,0.00037972,2]
[321071219,1711868833230,-47.90317439,0.00038256,2]
[321071220,1711868836090,-174.38160186,0.00038256,2]
[321071221,1711868836203,-222.28477623,0.00038325,2]
[321071222,1711868836223,-322.97578882,0.00038355,15]
[321071223,1711868836245,-400.0,0.00038355,5]
[321071224,1711868836266,-500.0,0.00038356,4]
[321071225,1711868836287,-500.0,0.00038356,4]
[321071226,1711868836307,-39.89899302,0.00038356,4]
[321071227,1711868847101,-460.10100698,0.00038356,4]
[321071228,1711868847123,-641.25,0.00038356,4]
[321071229,1711868847142,-500.0,0.00038356,4]
[321071230,1711868847161,-229.22469598,0.00038356,4]
[321071231,1711868847180,-362.40156781,0.00038356,4]
[321071281,1711869032733,-171.36521478,0.00038256,2]
[321071283,1711869032744,-171.36521478,0.00038325,2]
[321071285,1711869032753,-1000.0,0.00038355,30]
[321071287,1711869032762,-502.56148171,0.00038356,4]
[321071289,1711869032771,-501.0461332,0.00038356,4]
[321071291,1711869032780,-501.70995686,0.00038356,4]
[321071293,1711869032790,-490.0,0.00038356,4]
[321071295,1711869032799,-500.0,0.00038356,4]
[321071297,1711869032808,-503.59898242,0.00038356,4]
[321071299,1711869032817,-679.08,0.00038356,4]
[321071301,1711869032827,-500.0,0.00038356,4]
[321071303,1711869032835,-602.96,0.00038356,4]
[321071305,1711869032845,-500.0,0.00038356,4]
[321071307,1711869032854,-500.01578667,0.00038356,4]
[321071308,1711869032864,-573.86,0.00038356,4]
[321071311,1711869032873,-646.95,0.00038356,4]
[321071312,1711869032882,-500.0,0.00038356,4]
[321071314,1711869032892,-503.53505843,0.00038356,4]
[321071316,1711869032901,-500.0,0.00038356,4]
[321071317,1711869032909,-500.0,0.00038356,4]
[321071318,1711869032918,-500.0,0.00038356,4]
[321071319,1711869032928,-500.0,0.00038356,4]
[321071320,1711869032938,-500.0,0.00038356,4]
[321071321,1711869032947,-501.91657119,0.00038356,4]
[321071322,1711869032956,-500.0,0.00038356,4]
[321071323,1711869032966,-503.19237302,0.00038356,4]
[321071324,1711869032975,-576.20179694,0.00038356,4]
[321071325,1711869032984,-502.47,0.00038356,4]
[321071326,1711869032993,-874.7,0.00038356,4]
[321071327,1711869033003,-508.26,0.00038356,4]
[321071328,1711869033012,-500.0,0.00038356,4]
[321071329,1711869033021,-500.0,0.00038356,4]
[321071330,1711869033031,-500.0,0.00038356,4]
[321071331,1711869033040,-722.4,0.00038356,4]
[321071332,1711869033050,-500.0,0.00038356,4]
[321071333,1711869033060,-500.0,0.00038356,4]
[321071334,1711869033070,-692.53,0.00038356,4]
[321071335,1711869033079,-500.0,0.00038356,4]
[321071336,1711869033089,-500.0,0.00038356,4]
[321071337,1711869033098,-2132.34,0.00038356,4]
[321071338,1711869033108,-500.0,0.00038356,4]
[321071339,1711869033118,-500.0,0.00038356,4]
[321071340,1711869033127,-500.0,0.00038356,4]
[321071341,1711869033136,-678.79,0.00038356,4]
[321071342,1711869033145,-217.06,0.00038356,4]
[321071343,1711869033156,-500.0,0.00038356,2]
[321071344,1711869033168,-605.83,0.00038356,4]
[321071345,1711869033179,-2363.04,0.00038356,4]
[321071346,1711869033190,-500.0,0.00038356,4]
[321071347,1711869033200,-1105.32,0.00038356,4]
[321071348,1711869033210,-500.0,0.00038356,4]
[321071349,1711869033219,-500.0,0.00038356,4]
[321071350,1711869033230,-4683.2,0.00038356,4]
[321071351,1711869033240,-500.0,0.00038356,4]
[321071352,1711869033252,-500.0,0.00038356,4]
[321071353,1711869033263,-500.0,0.00038356,4]
[321071354,1711869033272,-946.59,0.00038356,4]
[321071355,1711869033283,-500.0,0.00038356,4]
[321071356,1711869033294,-501.05570379,0.00038356,4]
[321071357,1711869033305,-1846.38,0.00038356,4]
[321071358,1711869033316,-304.25115409,0.00038356,4]
[321071359,1711869033327,-551.35,0.00038356,4]
[321071360,1711869033340,-1843.16,0.00038356,4]
[321071361,1711869033350,-500.0,0.00038356,4]
[321071362,1711869033363,-500.0,0.00038356,4]
[321071363,1711869033374,-500.0,0.00038356,4]
[321071364,1711869033384,-500.0,0.00038356,4]
[321071365,1711869033394,-500.0,0.00038356,4]
[321071366,1711869033405,-527.85,0.00038356,2]
[321071367,1711869033415,-500.0,0.00038356,4]
[321071368,1711869033425,-14608.74,0.00038356,4]
[321071369,1711869033436,-500.0,0.00038356,4]
[321071370,1711869033446,-500.0,0.00038356,4]
[321071371,1711869033456,-3212.6,0.00038356,4]
[321071372,1711869033467,-500.0,0.00038356,4]
[321071373,1711869033476,-500.0,0.00038356,4]
[321071374,1711869033486,-788.32,0.00038356,4]
[321071375,1711869033496,-501.129937,0.00038356,4]
[321071376,1711869033505,-500.0,0.00038356,4]
[321071377,1711869033513,-500.0,0.00038356,4]
[321071378,1711869033522,-500.0,0.00038356,4]
[321071379,1711869033531,-878.1,0.00038356,4]
[321071380,1711869033540,-5151.88042124,0.00038356,4]
[321071556,1711869043522,-3148.23957876,0.00038356,4]
[321071557,1711869043531,-848.59,0.00038356,4]
[321071558,1711869043540,-500.0,0.00038356,4]
[321071559,1711869043549,-580.71983365,0.00038356,4]
[321071560,1711869043558,-500.0,0.00038356,4]
[321071561,1711869043567,-692.3,0.00038356,4]
[321071562,1711869043656,-171.36521478,0.00038393,2]
[321071563,1711869043665,-153.0,0.000384,2]
[321071564,1711869043674,-171.5838289,0.00038452,2]
[321071565,1711869043683,-171.36521478,0.00038462,2]
[321071566,1711869043693,-171.36521478,0.0003853,2]
[321071567,1711869043702,-1000.0,0.0003853,2]
[321071568,1711869043711,-154.7163091,0.000386,2]
[321071569,1711869043720,-154.7568716,0.000386,2]
[321071570,1711869043729,-500.0,0.0003863,4]
[321071571,1711869043739,-679.08,0.0003863,4]